Cogmind - Beta 15 @@@ ROGUE MODE // 2025.05.03 @ 10:10:18 Player: Some Pennies Result: Destroyed by NK-0LA with NK-0LA's Tesla Doomcannon Performance ------------- Evolutions (1) 500 Regions Visited (6) 1200 Robots Destroyed (100) 500 Value Destroyed (1657) 1657 Prototype IDs (19) 380 Alien Tech Used (0) 0 Bonus (85) 85 TOTAL SCORE: 4322 Bonus ------- Follower Combat Kills 85 Cogmind --------- Core Integrity 0/400 Matter 112/300 Energy 100/100 System Corruption 15% Temperature Cool (0) Movement Treading (480) Ox4 Location -8/Mines Parts ------- > --- POWER (1) -------- (None) > --- PROPULSION (3) --- Light Treads Light Treads Armored Treads > --- UTILITY (3) ------ Huge Storage Unit Experimental Core Analyzer Improved Armor Integrity Analyzer > --- WEAPON (2) ------- 8R-AWN's Boregun > --- INVENTORY (25) --- Cold Fusion Reactor Light Treads Advanced Myomer Leg Advanced Myomer Leg Experimental Heat Sink Large Matter Pod (34) Advanced Weapon Cycler Advanced Transmission Jammer Makeshift Hacking Suite Makeshift System Shield Improved EM Shotgun Advanced Beam Rifle Rocket Launcher Mini Grenade Launcher Mini Grenade Launcher Mining Laser Plasma Cutter Peak State ------------ > --- POWER ------------ Cooled Ion Engine > --- PROPULSION ------- Armored Treads Armored Treads Armored Treads > --- UTILITY ---------- Huge Storage Unit Experimental Core Analyzer Improved Armor Integrity Analyzer > --- WEAPON ----------- Heavy Assault Rifle 8R-AWN's Boregun > --- INVENTORY -------- Cold Fusion Reactor Light Treads Light Treads Light Treads Advanced Myomer Leg Advanced Myomer Leg Experimental Heat Sink Large Matter Pod Advanced Weapon Cycler Advanced Transmission Jammer Makeshift Hacking Suite Makeshift System Shield Improved EM Shotgun Advanced Beam Rifle Heavy Assault Rifle Heavy Assault Rifle Heavy Assault Rifle Rocket Launcher Mini Grenade Launcher Mini Grenade Launcher Mining Laser Plasma Cutter [Rating: 49] Favorites ----------- Power Cooled Ion Engine Engine Cooled Ion Engine Propulsion Light Treads Treads Light Treads Leg Aluminum Leg Utility Medium Armor Plating Device Improved Heat Sink Storage Huge Storage Unit Processor Experimental Core Analyzer Protection Medium Armor Plating Weapon Advanced Beam Rifle Energy Gun Advanced Beam Rifle Energy Cannon Beam Cannon Ballistic Gun Assault Rifle Launcher Rocket Launcher Special Weapon Mining Laser Special Melee Weapon Datajack Build | -11 -10 -10 -9 -9 -9 -8 ------- Run | Yrd Mat Min Mat Min Exi Min Slots Evolved 2 | . . . 2 . . . Power . | . . . . . . . Propulsion 1 | . . . 1 . . . Utility 1 | . . . 1 . . . Weapon . | . . . . . . . Parts Attached 68 | 8 6 1 36 . 13 4 Power 7 | 1 1 . 4 . 1 . Engine 7 | 1 1 . 4 . 1 . Core . | . . . . . . . Reactor . | . . . . . . . Propulsion 18 | 2 . . 12 . 3 1 Treads 17 | 2 . . 11 . 3 1 Leg 1 | . . . 1 . . . Wheel . | . . . . . . . Hover . | . . . . . . . Flight . | . . . . . . . Utility 18 | 2 3 . 9 . 2 2 Device 5 | 1 . . 4 . . . Storage 3 | 1 1 . 1 . . . Processor 2 | . . . . . . 2 Hackware . | . . . . . . . Protection 8 | . 2 . 4 . 2 . Artifact . | . . . . . . . Weapon 25 | 3 2 1 11 . 7 1 Energy Gun 7 | 1 . . 5 . 1 . Energy Cannon 2 | . . 1 1 . . . Ballistic Gun 11 | 2 2 . 2 . 4 1 Ballistic Cannon . | . . . . . . . Launcher 3 | . . . 2 . 1 . Special Weapon 1 | . . . 1 . . . Impact Weapon . | . . . . . . . Slashing Weapon . | . . . . . . . Piercing Weapon . | . . . . . . . Special Melee Weapon 1 | . . . . . 1 . Unidentified Prototypes 3 | . . . 3 . . . Parts Lost 16 | . . . 2 . 5 9 Power 1 | . . . . . 1 . Propulsion 6 | . . . 2 . 1 3 Utility 4 | . . . . . 2 2 Weapon 5 | . . . . . 1 4 Highest Loss Streak 9 | . . . 1 . 5 9 To Critical Strikes 3 | . . . . . 3 . Average Backups 20 | 3 13 15 22 24 23 23 Power . | . 1 1 1 1 . 1 Propulsion 4 | 1 1 1 5 7 6 5 Utility 4 | . 6 8 5 3 3 7 Weapon 8 | . 3 4 9 11 11 8 Tool/Special . | . . . . . . . Unused Backups 33 | . 5 . 9 1 5 13 Power 5 | . . . 1 . 3 1 Propulsion 7 | . 2 . 1 1 . 3 Utility 15 | . 2 . 5 . 2 6 Weapon 5 | . 1 . 2 . . 2 Tool/Special 1 | . . . . . . 1 Average Slot Usage (%) 99 | . 100 100 98 100 99 98 Engine 11 | . 14 14 11 11 11 11 Treads 30 | . 28 28 29 33 33 32 Device 6 | . 8 . 10 11 1 . Storage 11 | . 14 14 11 11 11 11 Protection 13 | . 5 14 10 11 20 13 Energy Gun 10 | . 8 . 18 21 2 . Energy Cannon 1 | . . 10 1 . . . Ballistic Gun 9 | . 19 17 1 . 15 22 Peak Build Rating 49 | 7 8 8 26 26 38 49 Average Rating 20 | 4 7 8 21 25 27 36 On Entrance 15 | . 7 8 8 26 26 31 Naked Turns . | . . . . . . . Heaviest Build 111 | 13 32 33 100 100 111 108 Greatest Support 63 | 40 40 40 63 63 63 60 Greatest Overweight (x) 3 | 1 . . 3 1 1 1 Average Overweight (x) . | . . . . 1 1 1 Largest Inventory Capacity 25 | 8 15 15 25 25 25 25 Average Capacity 21 | 6 14 15 23 25 25 25 Most Carried 25 | 5 15 15 25 25 25 25 Average Carried 20 | 3 13 15 22 24 23 23 Final Capacity 25 | 8 15 15 25 25 25 25 Final Carried 25 | 5 15 15 25 25 25 17 Class Distribution -------------------- 90% | Mutant 9% | Scavenger-Mutant Dominant Class ---------------- Mutant | -10/Materials Mutant | -10/Mines Mutant | -9/Materials Mutant | -9/Mines Mutant | -9/Exiles Mutant | -8/Mines Resources | -11 -10 -10 -9 -9 -9 -8 ----------- Run | Yrd Mat Min Mat Min Exi Min Matter Collected 2572 | 150 514 68 608 50 1182 . Remotely . | . . . . . . . Salvage Created 3519 | 101 583 46 2081 229 479 . Parts 260 | 7 43 5 125 13 67 . Haulers Intercepted 8 | . 2 . 6 . . . Recyclers Shooed 1 | . . . 1 . . . Parts Field Recycled . | . . . . . . . Retrieved Matter . | . . . . . . . Parts Self-Destructed . | . . . . . . . Prevented . | . . . . . . . Kills | -11 -10 -10 -9 -9 -9 -8 ------- Run | Yrd Mat Min Mat Min Exi Min Combat Hostiles Destroyed 52 | . 10 3 32 3 4 . Guns 34 | . 10 1 21 . 2 . Cannons 6 | . . 2 4 . . . AOE 12 | . . . 7 3 2 . Classes Destroyed 13 | 2 6 . 2 . 3 . Worker 4 | . 3 . . 1 . . Builder 1 | . . . 1 . . . Tunneler 7 | 2 . . 2 3 . . Hauler 8 | . 2 . 6 . . . Recycler 11 | 1 1 . 7 2 . . Operator 2 | . 1 . 1 . . . Turret 1 | . . . . . 1 . Watcher 7 | . 2 . 5 . . . Swarmer 22 | . 3 3 13 3 . . Grunt 17 | . 7 . 10 . . . Sentry 9 | . . . 9 . . . Zionite 8 | . . . . . 8 . Assembled 3 | . . . . . 3 . Best Kill Streak 8 | 3 8 3 7 4 3 . Combat Bots Only 4 | . 4 3 4 3 3 . Max Kills in Single Turn 3 | 1 1 1 3 2 1 . Gunslinging . | . . . . . . . Exploded 2 | . . . 2 2 1 . Melee . | . . . . . . . Uniques/NPCs Destroyed 4 | . . . . . 4 . 8R-AWN (-9/Exiles) EX-BIN (-9/Exiles) EX-DEC (-9/Exiles) EX-HEX (-9/Exiles) Combat | -11 -10 -10 -9 -9 -9 -8 -------- Run | Yrd Mat Min Mat Min Exi Min Hostile Shots Fired 396 | . 45 11 109 11 88 132 Missed 116 | . 7 2 36 5 23 43 Hits 280 | . 38 9 73 6 65 89 Projectile 280 | . 38 9 73 6 65 89 Critical Strikes 28 | . . . 1 . 26 1 Part Disruptions 3 | . . . . . . 3 Damage Taken 4827 | . 438 61 960 89 1177 2102 Core 520 | . 93 15 75 8 87 242 Absorbed by Shields . | . . . . . . . Regen/Repaired (Parts) 77 | . . . 77 . . . Core Remaining (%) 78 | 100 . 56 . . . . Volleys Fired 307 | 6 60 10 105 13 95 18 Largest 2 | 2 2 2 2 2 2 2 Hottest 122 | 70 70 80 122 122 84 53 Shots Fired 585 | 12 121 21 203 23 171 34 Gun 518 | 12 121 12 166 20 153 34 Cannon 39 | . . 9 30 . . . Launcher 25 | . . . 4 3 18 . Special 3 | . . . 3 . . . Kinetic 330 | 6 101 12 30 . 147 34 Thermal 228 | 6 20 9 169 20 4 . Explosive 25 | . . . 4 3 18 . Electromagnetic 2 | . . . . . 2 . Robot Hit Streak 11 | 6 9 3 11 5 10 10 Robot Miss Streak 6 | 1 5 5 5 2 6 2 Penetration Max . | . . . . . . . Secondary Targets 2 | . 2 . . . . . Max Gunslinging Chain 1 | . 1 . . . . . Shots Hit Robots 342 | 8 68 8 120 12 99 27 Core Hits 157 | 4 32 3 58 9 48 3 Critical Kills 3 | . . . . . 3 . Critical Parts Destroyed 7 | . 1 . . . 4 2 Critical Strikes 25 | . 4 . 9 1 8 3 Burn 14 | . 3 . 9 1 1 . Destroy 11 | . 1 . . . 7 3 Melee Attacks 4 | . . . . . 4 . Impact . | . . . . . . . Slashing . | . . . . . . . Piercing . | . . . . . . . Sneak Attacks 4 | . . . . . 4 . Combat Hostiles . | . . . . . . . Follow-up Attacks . | . . . . . . . Damage Inflicted 7090 | 101 885 127 2865 577 2135 400 Guns 5302 | 101 885 92 2017 240 1567 400 Cannons 413 | . . 35 378 . . . Explosions 1375 | . . . 470 337 568 . Melee . | . . . . . . . Ramming . | . . . . . . . Kinetic 3070 | 38 745 92 269 . 1526 400 Thermal 2644 | 63 140 35 2126 240 40 . Explosive 1375 | . . . 470 337 568 . Electromagnetic 1 | . . . . . 1 . Impact . | . . . . . . . Slashing . | . . . . . . . Piercing . | . . . . . . . Highest Corruption 15 | . 2 2 . . . 15 Average Corruption 2 | . 2 2 . . . 9 Corruption Purged . | . . . . . . . Corruption Blocked . | . . . . . . . Effects 21 | . 7 11 . . . 3 Message Errors 3 | . 2 1 . . . . Matter Fused 6 | . 1 5 . . . . Heat Flow Errors 1 | . . 1 . . . . Energy Discharges 3 | . 3 . . . . . Parts Rejected 1 | . . . . . . 1 Data Loss (minor) 2 | . . 2 . . . . Data Loss (major) 2 | . . 1 . . . 1 Misfires 2 | . 1 1 . . . . Weapon Failures 1 | . . . . . . 1 Overload Shots . | . . . . . . . Overflow Damage 22 | . . . 15 2 5 . Projectiles . | . . . . . . . Explosions 22 | . . . 15 2 5 . Melee . | . . . . . . . Knockbacks . | . . . . . . . Impact . | . . . . . . . Kinetic . | . . . . . . . Secondary . | . . . . . . . Self-Inflicted Damage 127 | . . . 45 43 39 . Shots 4 | . . . 1 1 2 . Rammed . | . . . . . . . Targets Rammed . | . . . . . . . Kicked . | . . . . . . . Crushed . | . . . . . . . Highest Temperature 436 | 9 27 137 436 60 108 . Average Temperature 38 | 6 9 38 46 20 43 . Received Heat Transfer 456 | . 132 . 324 . . . Siege Activations . | . . . . . . . Martial Activations . | . . . . . . . Shielding Activations . | . . . . . . . Robots Disrupted . | . . . . . . . Combat Hostiles . | . . . . . . . Robots Corrupted . | . . . . . . . Combat Hostiles . | . . . . . . . Parts Fried . | . . . . . . . Impact Corruptions . | . . . . . . . Robots Melted . | . . . . . . . Combat Hostiles . | . . . . . . . Parts Melted 7 | . . . 7 . . . Heat Transferred 6179 | 185 629 74 4625 518 148 . Parts Sabotaged . | . . . . . . . Parts Stolen . | . . . . . . . Parts Stripped . | . . . . . . . Power Chain Reactions . | . . . . . . . Alert | -11 -10 -10 -9 -9 -9 -8 ------- Run | Yrd Mat Min Mat Min Exi Min Maximum Alert Level 1 | . . . 1 . . . Low Security (%) 74 | 100 100 100 42 100 . 100 Level 1 25 | . . . 57 . . . Level 2 . | . . . . . . . Level 3 . | . . . . . . . Level 4 . | . . . . . . . Level 5 . | . . . . . . . High Security . | . . . . . . . Max Security . | . . . . . . . Peak Influence 364 | 5 164 83 364 82 . 1 Initial 82 | . 3 37 . 82 . . Average 115 | 1 50 10 230 10 . . Influence Increases 1865 | 15 332 91 1309 117 . 1 Destroy 0b10 Robot/C 1020 | . 200 60 700 60 . . Destroy 0b10 Robot/NC 200 | 15 45 . 110 30 . . Destroy Leader 260 | . 48 10 192 10 . . Allied During Kill 39 | . . 21 18 . . . Successful Hack 69 | . 38 . 31 . . . Select Force Hacks 30 | . . . 30 . . . Disable Machine 90 | . . . 90 . . . Destroy Structure 52 | . 1 . 33 17 . 1 Lose Combat Pursuer 105 | . . . 105 . . . Influence Decreases 1864 | 10 241 187 1098 328 . . Entered New Map 190 | . 2 59 . 129 . . Time Decay 1294 | 10 239 128 718 199 . . Lost Part 20 | . . . 20 . . . Lost Ally 60 | . . . 60 . . . Purge Threat 300 | . . . 300 . . . Squads Dispatched 5 | . 1 . 4 . . . Investigation 3 | . . . 3 . . . Extermination . | . . . . . . . Reinforcement 2 | . 1 . 1 . . . Assault . | . . . . . . . Garrison . | . . . . . . . Intercept . | . . . . . . . Searches Triggered . | . . . . . . . Construction Impeded . | . . . . . . . Haulers Reinforced . | . . . . . . . Active Scanning Responses . | . . . . . . . Cargo Convoy Interrupts . | . . . . . . . Stealth | -11 -10 -10 -9 -9 -9 -8 --------- Run | Yrd Mat Min Mat Min Exi Min Distress Signals 8 | . 3 . 5 . . . Communications Jammed . | . . . . . . . Distress Signals . | . . . . . . . Times Spotted 91 | . 22 3 50 3 12 1 Peak Tracking Total 9 | . 4 3 7 3 9 1 Tactical Retreats 4 | . . . 3 . 1 . Traps | -11 -10 -10 -9 -9 -9 -8 ------- Run | Yrd Mat Min Mat Min Exi Min Traps Triggered 4 | . 3 . 1 . . . Indirectly . | . . . . . . . Trap Hack Attempts . | . . . . . . . Triggered . | . . . . . . . Disarmed . | . . . . . . . Reprogrammed . | . . . . . . . Reused . | . . . . . . . Traps Extracted . | . . . . . . . Installed . | . . . . . . . Triggered . | . . . . . . . Machines | -11 -10 -10 -9 -9 -9 -8 ---------- Run | Yrd Mat Min Mat Min Exi Min Machines Disabled 20 | . . . 8 . 12 . Max in Single Turn 2 | . . . 2 . 2 . Machines Repaired . | . . . . . . . Machines Dismantled . | . . . . . . . Machines Sabotaged . | . . . . . . . Overloaded Fab Kills . | . . . . . . . Hacking | -11 -10 -10 -9 -9 -9 -8 --------- Run | Yrd Mat Min Mat Min Exi Min Machines Accessed 24 | . 8 . 14 . 2 . Terminals 16 | . 7 . 9 . . . Fabricators . | . . . . . . . Repair Stations 2 | . . . 2 . . . Recycling Units 3 | . 1 . 2 . . . Scanalyzers 1 | . . . 1 . . . Garrison Access . | . . . . . . . Total Hacks 93 | . 25 . 57 . 11 . Successful 65 | . 13 . 41 . 11 . Failed 27 | . 12 . 15 . . . Catastrophic 3 | . 1 . 2 . . . Database Lockouts 1 | . . . 1 . . . Manual 42 | . 16 . 26 . . . Terminals 61 | . 22 . 39 . . . Fabricators . | . . . . . . . Repair Stations 4 | . . . 4 . . . Recycling Units 9 | . 3 . 6 . . . Scanalyzers 8 | . . . 8 . . . Garrison Access . | . . . . . . . Terminal Hacks 27 | . 3 . 13 . 11 . Record 11 | . . . . . 11 . Part Schematic 1 | . 1 . . . . . Robot Analysis 3 | . . . 3 . . . Prototype ID Bank 1 | . . . 1 . . . Branch Access Points 1 | . . . 1 . . . Emergency Access Points 1 | . . . 1 . . . Terminal Index 2 | . 1 . 1 . . . Alert Level 1 | . . . 1 . . . Unreport Threat 2 | . . . 2 . . . Locate Traps 2 | . 1 . 1 . . . Dispatch Records 1 | . . . 1 . . . Zone Layout 1 | . . . 1 . . . Fabricator Hacks . | . . . . . . . Repair Station Hacks 4 | . . . 4 . . . Scan Component 2 | . . . 2 . . . Repair 2 | . . . 2 . . . Recycling Unit Hacks 4 | . 2 . 2 . . . Retrieve Matter 1 | . 1 . . . . . Retrieve Components 3 | . 1 . 2 . . . Scanalyzer 8 | . . . 8 . . . Insert Component 4 | . . . 4 . . . Analyze 4 | . . . 4 . . . Garrison Access Hacks . | . . . . . . . Unauthorized Hacks 21 | . 7 . 14 . . . Terminals 18 | . 7 . 11 . . . Assimilate 1 | . . . 1 . . . Botnet 3 | . 1 . 2 . . . Operators 2 | . 1 . 1 . . . Skim 12 | . 5 . 7 . . . Fabricators . | . . . . . . . Repair Stations . | . . . . . . . Recycling Units 3 | . . . 3 . . . Reject 1 | . . . 1 . . . Mask 1 | . . . 1 . . . Tunnel 1 | . . . 1 . . . Scanalyzers . | . . . . . . . Garrison Access . | . . . . . . . Data Cores Recovered . | . . . . . . . Used . | . . . . . . . Hacking Detections 17 | . 6 . 11 . . . Full Trace Events 1 | . . . 1 . . . Feedback Events . | . . . . . . . Feedback Blocked . | . . . . . . . Robot Schematics Acquired . | . . . . . . . Robots Built . | . . . . . . . Authchips . | . . . . . . . Time . | . . . . . . . Total Robot Build Rating . | . . . . . . . Part Schematics Acquired 5 | . 1 . 4 . . . Parts Built . | . . . . . . . Authchips . | . . . . . . . Time . | . . . . . . . Total Part Build Rating . | . . . . . . . Parts Repaired 2 | . . . 2 . . . Time 48 | . . . 48 . . . Parts Recycled . | . . . . . . . Recycled Matter . | . . . . . . . Retrieved Matter . | . . . . . . . Retrieved Components 21 | . 3 . 18 . . . Parts Scanalyzed 4 | . . . 4 . . . Part Schematics Acquired 4 | . . . 4 . . . Parts Damaged 1 | . . . 1 . . . Bothacking | -11 -10 -10 -9 -9 -9 -8 ------------ Run | Yrd Mat Min Mat Min Exi Min Used RIF Installer . | . . . . . . . Robots Hacked 4 | . . . . . 4 . Non-combat 3 | . . . . . 3 . Combat 1 | . . . . . 1 . Robot Hacks Applied 4 | . . . . . 4 . parse_system 4 | . . . . . 4 . Relay Couplers Released . | . . . . . . . Fabnet Peak Effective % . | . . . . . . . Robots Rewired . | . . . . . . . Allies Hacked . | . . . . . . . Hacks Repelled . | . . . . . . . Allies | -11 -10 -10 -9 -9 -9 -8 -------- Run | Yrd Mat Min Mat Min Exi Min Total Allies 6 | . . 5 1 . . . Largest Group 5 | . . 5 5 1 1 1 Highest-Rated Group 85 | . . 85 85 10 10 10 Highest-Rated Ally 31 | . . 31 31 10 10 10 Total Orders 5 | . . . 2 . 2 1 STAY 3 | . . . 1 . 1 1 FOLLOW 2 | . . . 1 . 1 . Ally Attacks 36 | . . . 36 . . . Total Damage 403 | . . . 403 . . . Kills 4 | . . . 4 . . . Allies Corrupted . | . . . . . . . Allies Melted . | . . . . . . . Intel | -11 -10 -10 -9 -9 -9 -8 ------- Run | Yrd Mat Min Mat Min Exi Min Active Infowar (turns) 1995 | 10 1010 . 975 . . . Seismic 1995 | 10 1010 . 975 . . . Robot Analysis Total 3 | . . . 3 . . . Derelict Logs Recovered 3 | . . 1 . 2 . . Drone Launches . | . . . . . . . Drone Recoveries . | . . . . . . . Exploration | -11 -10 -10 -9 -9 -9 -8 ------------- Run | Yrd Mat Min Mat Min Exi Min Turns Passed 11498 | 88 1700 1053 3559 1584 3403 111 Spaces Moved 4580 | 53 909 639 1293 642 1029 15 Core 32 | 32 . . . . . . Treads 4545 | 21 909 639 1290 642 1029 15 Legs 3 | . . . 3 . . . Wheels . | . . . . . . . Hover . | . . . . . . . Flight . | . . . . . . . Fastest Speed 50 | 50 160 160 160 240 240 250 Average Speed 211 | 97 160 160 236 240 244 250 Slowest Speed 330 | 160 160 160 330 240 250 250 Overloaded Moves . | . . . . . . . Propulsion Burnouts . | . . . . . . . Robots Hopped . | . . . . . . . Potential Cave-ins . | . . . . . . . Cave-ins Triggered . | . . . . . . . Exploration Rate (%) 68 | 4 98 98 95 98 87 2 Regions Visited 6 Branch Regions 4 Pre-discovered Areas 5 | . . . 2 2 1 . Known Exits Taken 3 | . 1 1 1 . . . Unknown Exits Taken 3 | 1 . . . 1 1 . Scrap Searched 2 | . . 1 . 1 . . Spaces Dug 27 | . . . 4 15 8 . Terrain Destroyed 105 | . . . 25 20 56 4 Melee . | . . . . . . . Projectile 13 | . . . 3 . 6 4 AOE 92 | . . . 22 20 50 . Terrain Rammed . | . . . . . . . Walls Destroyed . | . . . . . . . Machines Disabled . | . . . . . . . Actions | -11 -10 -10 -9 -9 -9 -8 --------- Run | Yrd Mat Min Mat Min Exi Min Total 5829 | 76 1040 650 1598 663 1750 52 Wait 702 | . 39 . 83 3 569 8 Move 4574 | 52 908 638 1292 641 1028 15 Hop . | . . . . . . . Pick Up 79 | 10 17 . 31 2 19 . Fast Attach 14 | 2 . 1 11 . . . Attach 26 | 5 . . 3 . 10 8 Detach 3 | . . . 2 . 1 . Swap 55 | 1 6 . 33 2 10 3 Drop 65 | . 10 1 38 2 14 . Fire 307 | 6 60 10 105 13 95 18 Melee 4 | . . . . . 4 . Ram . | . . . . . . . Kick . | . . . . . . . Crush . | . . . . . . . Escape Stasis . | . . . . . . . Rewire . | . . . . . . . Trap . | . . . . . . . Miscellaneous . | . . . . . . . Route ------- -11/Scrapyard -10/Materials (discovered 6 exits: *Mat x3 / *Min x2 / *Sub) -10/Mines (discovered 3 exits: *Mat x2 / *Sub) -9/Materials (discovered 5 exits: *Mat x3 / *Min x2) -9/Mines (discovered 3 exits: *Mat x2 / *Exi) -9/Exiles -8/Mines History --------- Turn | Location | Event 5 | -11/Scrapyard | Discovered new exit (range 14) 89 | -11/Scrapyard | Entered Materials 263 | -10/Materials | Discovered new exit (range 13) 300 | -10/Materials | Build established: Mutant 462 | -10/Materials | Discovered new exit (range 10) 567 | -10/Materials | Discovered new exit (range 14) 713 | -10/Materials | Discovered new exit (range 8) 976 | -10/Materials | Discovered new exit (range 7) 1340 | -10/Materials | Discovered new exit (range 12) 1453 | -10/Materials | Learned location of 2 exits from Subcaves 1521 | -10/Materials | Learned 2 Storage zone layouts 1581 | -10/Materials | Identified exit to Subcaves 1581 | -10/Materials | Identified exit to Materials 1581 | -10/Materials | Identified exit to Mines 1718 | -10/Materials | Learned Storage trap positions 1777 | -10/Materials | Learned Storage trap positions 1789 | -10/Materials | Entered Mines 1860 | -10/Mines | Learned location of 1 exit from Materials 1913 | -10/Mines | Discovered exit to Subcaves (range 6) 1959 | -10/Mines | Assisted by bots powering up and referring to "LRC-V3" 2842 | -10/Mines | Entered Materials 2842 | -9/Materials | Accompanied by 5 allies 2842 | -9/Materials | Evolved 2 slots: Propulsion x1, Utility x1 2843 | -9/Materials | Identified exit to Materials 2847 | -9/Materials | Led the pair of lost Derelicts to an unsafe place 3751 | -9/Materials | Build established: Scavenger-Mutant 3851 | -9/Materials | Discovered new exit (range 13) 4009 | -9/Materials | Central database locked down 4070 | -9/Materials | Discovered exit to Materials (range 15) 4179 | -9/Materials | Discovered new exit (range 13) 4514 | -9/Materials | Loaded intel: 7 trap records 4605 | -9/Materials | Learned location of Mines (-9) 4630 | -9/Materials | Loaded intel: 2 recycling unit locations 4699 | -9/Materials | Build established: Mutant 4742 | -9/Materials | Repaired Hvy. Assault Rifle 5087 | -9/Materials | Identified exit to Mines 5163 | -9/Materials | Repaired Med. Armor Plating? 6401 | -9/Materials | Entered Mines 6401 | -9/Mines | Accompanied by 1 ally 6402 | -9/Mines | Learned location of Storage (-8) 6659 | -9/Mines | Discovered exit to Materials (range 5) 6965 | -9/Mines | Discovered exit to Materials (range 8) 7400 | -9/Mines | Deemed a non-threat by the Exiles lab entrance 7400 | -9/Mines | Discovered new exit (range 5) 7703 | -9/Mines | Learned location of Zion (-7) 7985 | -9/Mines | Entered Exiles 7985 | -9/Exiles | Accompanied by 1 ally 8045 | -9/Exiles | Met 8R-AWN 8089 | -9/Exiles | Met EX-HEX 8160 | -9/Exiles | Met EX-BIN 8236 | -9/Exiles | Met EX-DEC 8535 | -9/Exiles | Discovered new exit (range 14) 9384 | -9/Exiles | Attacked by the Exiles 9572 | -9/Exiles | Destroyed 8R-AWN 9587 | -9/Exiles | Lost 5 parts (1p1n2u1w) 9589 | -9/Exiles | Found 8R-AWN's Boregun 10240 | -9/Exiles | Destroyed EX-BIN 10593 | -9/Exiles | Destroyed EX-DEC 10620 | -9/Exiles | Destroyed EX-HEX 10658 | -9/Exiles | Found Exp. Core Analyzer 11388 | -9/Exiles | Entered Mines 11388 | -8/Mines | Accompanied by 1 ally 11433 | -8/Mines | NK-0LA came to Exiles' defense 11447 | -8/Mines | Core integrity fell below 50% 11463 | -8/Mines | System corruption reached 10% 11487 | -8/Mines | Core integrity fell below 20% 11499 | -8/Mines | Destroyed by NK-0LA with NK-0LA's Tesla Doomcannon Last Messages --------------- 11468_ HV Slug penetrates Wall. 11471_ HV Slug penetrates NK-0LA. 11471_ HV Slug penetrates Wall. 11475_ System corrupted: Substantial component data lost. 11476_ Arm. Treads destroyed. 11478_ Destroyed Adv. Power Amplifier. 11486_ Arm. Treads destroyed. 11488_ Hvy. Assault Rifle destroyed. 11491_ System corrupted: Cld. Ion Engine rejected. 11491_ HV Slug penetrates NK-0LA. 11491_ NK-0LA suffers critical hit (Destroy). 11491_ Destroyed Exp. Heat Sink. 11491_ HV Slug penetrates Wall. 11494_ System corrupted: Hvy. Assault Rifle jammed. 11494_ HV Slug penetrates NK-0LA. 11494_ NK-0LA suffers critical hit (Destroy). 11494_ HV Slug penetrates Wall. 11494_ Hvy. Assault Rifle destroyed. 11497_ HV Slug penetrates NK-0LA. 11497_ HV Slug penetrates Wall. Map ----- +----------------------------------------------------+ | ??????????????????????????????????? | | ??????????????????????????????????? | | ??????????????????????????????????? | | ??????????????????????????????????? | | ??????????????????????????????????? | | ??????????????????????????????????? | | ??????????????????????????????????? | | ??????????????????????????????????? | | ??????????????????????????????????? | | ??????????????????????????????????? | | ??????????????????????????????????? | | ??????????????????????????????????? | | ??????????????????????????????????? | | ??????????????????????????????????? | | ??????????????????????????????????? | | ??????????????????????????????????? | | ??????????????????????????????????? | | ????????????????????????###???????? | | ????????????????????????# #???????? | | ????????????????????????# #???????? | | ?????????????????????#??#;######??? | | ?????????????????????# ## #??? | | ?????????????????????# #??? | | ?????????????????????## #x o #??? | | ??????????????????????# # #??? | | ??????????????????????#?#@ #??? | | ????????????????????????########??? | | ??????????????????????????????????? | | ??????????????????????????????????? | | ??????????????????????????????????? | | ??????????????????????????????????? | | ??????????????????????????????????? | | ??????????????????????????????????? | | ??????????????????????????????????? | | ??????????????????????????????????? | | ??????????????????????????????????? | | ??????????????????????????????????? | | ??????????????????????????????????? | | ??????????????????????????????????? | | ??????????????????????????????????? | | ??????????????????????????????????? | | ??????????????????????????????????? | | ??????????????????????????????????? | | ??????????????????????????????????? | | ??????????????????????????????????? | | ??????????????????????????????????? | | ??????????????????????????????????? | | ??????????????????????????????????? | | ??????????????????????????????????? | | ??????????????????????????????????? | +----------------------------------------------------+ Best States ------------- Heat Dissipation 56 Energy Generation 14 Energy Capacity 280 Matter Stores 300 Matter Capacity 300 Sight Range 16 Terrain Scan Density 10 Armor Coverage 450 Evasion (%) 50 Core Analysis 8 Armor Integrity Analysis 40 Recoil Reduction 3 Item Schematics ----------------- ECM Suite | -10/Materials | Hacked Plasma Cutter | -9/Materials | Scanalyzed Arm. Treads | -9/Materials | Scanalyzed Cld. Ion Engine | -9/Materials | Scanalyzed Seismic Detector | -9/Materials | Scanalyzed Robot Schematics ------------------ None Fabricated ------------ Nothing Repaired ---------- Hvy. Assault Rifle | 74% | -9/Materials Med. Armor Plating | 60% | -9/Materials Alien Tech Used ----------------- None Achievements -------------- None Challenges ------------ None Game ------ Seed FieldArmoredSystem Manual? 0 Play Time 00:56:42 Cumulative 699.7 hours Start 2025.05.03 @ 08:56:30 End 2025.05.03 @ 10:10:18 Sessions 1 Manual Loads 0 Difficulty Rogue Special Mode None Game No. 387 Rogue 382 Adventurer 5 Explorer 0 Win Type - Total 27 Types 7/1/11/1/1/0/4/1/1/0 Lore% 90 Gallery% 89 Achievement% 82 Wizard Run 0 Options --------- Layout 0 ASCII 0 Keyboard 0 Movement Mouse Keybinds 0 Fullscreen 2 Font 18/SmallcapsGlow Map View 38x25 Zoom Use 42% Tactical HUD 1 Map Filters NONE Filters NONE Steam 1 RUN: 6595a869-36e2-43a5-9db1-f70a5abea64b